Cogmind - Beta 15 @@@ ROGUE MODE // 2025.09.04 @ 17:44:36 Player: laeb2 Result: Destroyed by 5I-FSD(B) with Slug Cannon Performance ------------- Evolutions (5) 2500 Regions Visited (16) 3200 Robots Destroyed (202) 1010 Value Destroyed (9118) 9118 Prototype IDs (11) 220 Alien Tech Used (0) 0 Bonus (4853) 4853 TOTAL SCORE: 20901 Bonus ------- High Alert Combat Kills 1830 Follower Combat Kills 423 Entered Garrisons 600 Used RIF Installer 1500 Entered DSFs 500 Cogmind --------- Core Integrity 0/1000 Matter 477/500 Energy 13/100 System Corruption 0% Temperature Cool (0) Movement Core (100) Ox1 Location -5/Warlord Parts ------- > --- POWER (1) -------- (None) > --- PROPULSION (5) --- (None) > --- UTILITY (8) ------ High-capacity Matter Pod > --- WEAPON (3) ------- (None) > --- INVENTORY (5) ---- Fission Core Heavy Proton Missile Launcher Chainsword Makeshift Axe Peak State ------------ > --- POWER ------------ Micro Fission Core > --- PROPULSION ------- Heavy Treads Heavy Treads > --- UTILITY ---------- Power Amplifier Advanced Heat Sink Advanced Heat Sink Huge Storage Unit Advanced Targeting Computer Advanced Recoil Stabilizer Precision Matter Filter > --- WEAPON ----------- Heavy Machine Gun Molecular Deconstructor > --- INVENTORY -------- Light Angular Momentum Engine Improved Heavy Treads Experimental Heat Sink Large Matter Pod Hardened Heavy Armor Plating Authchip [R/Combat] Advanced Drone Bay Improved Arc Projector Gauss Rifle Gauss Rifle Flak Gun Flak Gun Flak Gun Coil Gun Heavy Machine Gun Gauss Cannon Heavy Proton Missile Launcher Missile Launcher Improved Remote Datajack Chainsword [Rating: 96] Favorites ----------- Power Improved Ion Engine Engine Improved Ion Engine Power Core Micro Fission Core Propulsion Light Treads Treads Light Treads Wheel Wheel Utility Advanced Targeting Computer Device Advanced Heat Sink Storage Huge Storage Unit Processor Advanced Targeting Computer Hackware Authchip [R/Combat] Protection Light Armor Plating Weapon Gauss Rifle Energy Gun Gatling Laser Energy Cannon Long-range Proton Cannon Ballistic Gun Gauss Rifle Ballistic Cannon Gauss Cannon Launcher Grenade Launcher Special Weapon Molecular Deconstructor Slashing Weapon Chainsword Build | -11 -10 -10 -9 -8 -8 -8 -7 -7 -7 -7 -6 -6 -5 -5 -5 -5 ------- Run | Yrd Mat Min Mat Mat Gar Mat Fac Gar Fac Gar Fac DSF Fac Upp Upp War Slots Evolved 10 | . . . 2 2 . . 2 . . . 2 . 2 . . . Power . | . . . . . . . . . . . . . . . . . Propulsion 3 | . . . 1 1 . . . . . . . . 1 . . . Utility 6 | . . . . 1 . . 2 . . . 2 . 1 . . . Weapon 1 | . . . 1 . . . . . . . . . . . . . Parts Attached 160 | 6 5 . 10 2 26 17 4 24 . 19 . 10 13 13 9 2 Power 10 | 1 . . 2 . . 1 . 1 . 1 . . 1 3 . . Engine 8 | 1 . . 2 . . 1 . 1 . 1 . . 1 1 . . Core 2 | . . . . . . . . . . . . . . 2 . . Reactor . | . . . . . . . . . . . . . . . . . Propulsion 46 | 2 . . 1 1 10 10 1 9 . 4 . 3 2 2 1 . Treads 45 | 2 . . 1 1 10 10 1 8 . 4 . 3 2 2 1 . Leg . | . . . . . . . . . . . . . . . . . Wheel 1 | . . . . . . . . 1 . . . . . . . . Hover . | . . . . . . . . . . . . . . . . . Flight . | . . . . . . . . . . . . . . . . . Utility 51 | 2 3 . . 1 9 2 1 8 . 5 . 4 8 2 4 2 Device 18 | 1 . . . . 1 . . 2 . 3 . 1 7 1 2 . Storage 8 | 1 2 . . . 1 . . 1 . . . . . . 2 1 Processor 7 | . . . . . . 2 . 3 . . . 1 1 . . . Hackware 5 | . . . . . . . . 2 . 1 . 1 . 1 . . Protection 13 | . 1 . . 1 7 . 1 . . 1 . 1 . . . 1 Artifact . | . . . . . . . . . . . . . . . . . Weapon 53 | 1 2 . 7 . 7 4 2 6 . 9 . 3 2 6 4 . Energy Gun 13 | . 1 . . . . 2 1 . . 5 . 1 . . 3 . Energy Cannon 1 | . . . . . . . . . . 1 . . . . . . Ballistic Gun 30 | 1 1 . 7 . 5 1 1 5 . 2 . 1 1 4 1 . Ballistic Cannon 3 | . . . . . . 1 . . . . . 1 . 1 . . Launcher 3 | . . . . . 2 . . . . . . . 1 . . . Special Weapon 2 | . . . . . . . . . . 1 . . . 1 . . Impact Weapon . | . . . . . . . . . . . . . . . . . Slashing Weapon 1 | . . . . . . . . 1 . . . . . . . . Piercing Weapon . | . . . . . . . . . . . . . . . . . Special Melee Weapon . | . . . . . . . . . . . . . . . . . Unidentified Prototypes 9 | . . . . . . 2 2 1 . . . . 3 1 . . Parts Lost 77 | . . . . . 15 . 2 12 . 7 . 6 7 14 5 9 Power 8 | . . . . . . . 1 1 . 1 . . 1 3 . 1 Propulsion 24 | . . . . . 7 . 1 5 . 2 . 2 1 3 1 2 Utility 26 | . . . . . 7 . . 3 . . . 2 3 4 1 6 Weapon 19 | . . . . . 1 . . 3 . 4 . 2 2 4 3 . Highest Loss Streak 10 | . . . . . 5 . 1 6 . 2 . 3 5 10 5 9 To Critical Strikes . | . . . . . . . . . . . . . . . . . Average Backups 18 | 2 8 14 14 13 18 19 19 20 22 22 23 20 20 18 17 19 Power 1 | . 1 1 1 1 1 1 1 1 2 1 2 1 . 1 . 2 Propulsion 2 | . 1 2 2 2 3 4 3 2 4 3 3 2 2 . . . Utility 5 | . 3 5 6 5 5 7 6 5 7 7 8 6 5 5 4 3 Weapon 8 | 1 2 4 4 5 7 7 7 8 8 8 9 8 10 10 10 12 Tool/Special . | . . . . . . . . . . . . . . . . . Unused Backups 40 | . . . 6 1 5 4 . 11 . . . 2 . 1 1 9 Power 7 | . . . 2 . 1 . . 1 . . . 1 . . . 2 Propulsion 5 | . . . . . . . . 4 . . . 1 . . . . Utility 9 | . . . . 1 2 2 . 2 . . . . . . 1 1 Weapon 17 | . . . 4 . 2 2 . 3 . . . . . 1 . 5 Tool/Special 2 | . . . . . . . . 1 . . . . . . . 1 Average Slot Usage (%) 88 | . 97 100 99 99 95 99 93 93 92 86 80 87 83 65 66 58 Engine 7 | . 14 14 11 9 9 9 7 7 7 6 6 6 4 2 . . Treads 24 | . 28 28 33 36 35 36 30 25 23 18 20 17 14 11 10 9 Device 6 | . 4 . . . 3 1 . 1 . 4 6 10 14 18 13 15 Storage 7 | . 14 14 11 9 9 9 7 7 7 7 6 6 5 5 6 10 Processor 11 | . . . . . . 12 15 19 30 21 13 19 18 5 5 4 Protection 5 | . 9 14 11 17 10 4 8 6 . 1 6 5 4 . . . Energy Gun 3 | . . . . . . 1 . . . 12 20 15 4 . 2 3 Ballistic Gun 16 | . 25 28 32 27 26 21 15 17 15 8 . 2 4 10 12 . Ballistic Cannon 1 | . . . . . . 3 7 . . . . 1 4 1 . . Peak Build Rating 96 | 6 8 8 15 17 26 32 35 59 54 67 59 75 91 96 81 78 Average Rating 45 | 4 7 8 11 16 21 29 34 43 54 58 59 66 80 77 71 59 On Entrance 39 | . 6 8 8 15 17 26 32 35 54 54 59 59 71 83 71 78 Naked Turns . | . . . . . . . . . . . . . . . . . Heaviest Build 119 | 11 29 29 39 42 66 66 68 103 100 112 112 116 119 115 102 101 Greatest Support 168 | 40 40 40 60 80 80 85 85 127 115 150 115 150 168 168 145 105 Greatest Overweight (x) 6 | . . . . . 1 . . 6 . 1 . . . 1 1 2 Average Overweight (x) . | . . . . . . . . . . . . . . . . . Largest Inventory Capacity 25 | 8 15 15 15 15 20 20 20 25 25 25 25 25 25 25 25 25 Average Capacity 21 | 7 10 15 15 15 19 20 20 22 25 25 25 25 25 25 25 24 Most Carried 25 | 5 12 15 15 15 20 20 20 25 25 25 25 25 25 25 22 23 Average Carried 20 | 3 8 14 14 13 18 19 19 21 25 24 25 22 24 21 19 21 Final Capacity 25 | 8 15 15 15 15 20 20 20 25 25 25 25 25 25 25 25 5 Final Carried 25 | 5 12 15 15 15 20 20 20 25 25 25 25 25 25 20 20 4 Class Distribution -------------------- 34% | Scavenger-Gunner 25% | Scavenger-Tank 13% | Scavenger-Mutant 12% | Mutant 9% | Gunner 4% | Tank Dominant Class ---------------- Mutant | -10/Materials Mutant | -10/Mines Tank | -9/Materials Scavenger-Tank | -8/Materials Scavenger-Tank | -8/Garrison Scavenger-Gunner | -8/Materials Scavenger-Gunner | -7/Factory Scavenger-Mutant | -7/Garrison Scavenger-Mutant | -7/Factory Scavenger-Gunner | -7/Garrison Scavenger-Gunner | -6/Factory Scavenger-Gunner | -6/DSF Gunner | -5/Factory Gunner | -5/Upper Caves Scavenger-Tank | -5/Upper Caves Mutant | -5/Warlord Resources | -11 -10 -10 -9 -8 -8 -8 -7 -7 -7 -7 -6 -6 -5 -5 -5 -5 ----------- Run | Yrd Mat Min Mat Mat Gar Mat Fac Gar Fac Gar Fac DSF Fac Upp Upp War Matter Collected 6489 | 284 302 52 216 16 1332 778 144 1010 . 729 . 194 517 462 431 22 Remotely . | . . . . . . . . . . . . . . . . . Salvage Created 9170 | 121 332 204 344 16 1035 1077 125 1672 . 1639 . 717 788 723 377 . Parts 476 | 6 34 13 25 3 69 67 5 94 . 54 . 38 36 25 7 . Haulers Intercepted 6 | . 2 . . . . 3 . . . . . . 1 . . . Recyclers Shooed 2 | . . 1 . . . . . . . . . . 1 . . . Parts Field Recycled . | . . . . . . . . . . . . . . . . . Retrieved Matter . | . . . . . . . . . . . . . . . . . Parts Self-Destructed 25 | . . . . . . . . . . . . . . 19 6 . Prevented 7 | . . . . . . . . . . . . . . 7 . . Kills | -11 -10 -10 -9 -8 -8 -8 -7 -7 -7 -7 -6 -6 -5 -5 -5 -5 ------- Run | Yrd Mat Min Mat Mat Gar Mat Fac Gar Fac Gar Fac DSF Fac Upp Upp War Combat Hostiles Destroyed 179 | . 9 5 7 . 26 20 3 27 . 33 . 14 16 14 5 . Melee 1 | . . . . . . . . 1 . . . . . . . . Guns 146 | . 9 5 7 . 22 16 1 18 . 28 . 12 13 10 5 . Cannons 16 | . . . . . . 4 2 3 . . . 2 3 2 . . AOE 12 | . . . . . 4 . . 5 . 3 . . . . . . Classes Destroyed 16 | 2 4 . 2 1 3 1 . . . 1 . 2 . . . . Builder 3 | . 1 . . . . 1 . . . . . . 1 . . . Tunneler 2 | 1 . . . . . . . . . . . . 1 . . . Hauler 6 | . 2 . . . . 3 . . . . . . 1 . . . Recycler 4 | 1 . 1 1 . . 1 . . . . . . . . . . Operator 2 | . . . . 1 . 1 . . . . . . . . . . Watcher 6 | . . . 1 . 1 1 1 . . . . . 2 . . . Swarmer 45 | . 6 3 2 . 7 5 . 10 . 4 . 3 5 . . . Cutter 3 | . . . . . 1 . . 2 . . . . . . . . Grunt 73 | . 3 2 2 . 4 7 2 8 . 20 . 6 8 6 5 . Brawler 2 | . . . . . . 1 . 1 . . . . . . . . Duelist 2 | . . . . . . . . . . 1 . . . 1 . . Sentry 28 | . . . 3 . 9 6 1 3 . 4 . . 1 1 . . Specialist 7 | . . . . . . . . . . . . 4 . 3 . . Hunter 7 | . . . . . 1 1 . 1 . 2 . . . 2 . . Programmer 11 | . . . . . 4 . . 2 . 2 . . 2 1 . . Heavy 1 | . . . . . . . . . . . . 1 . . . . Best Kill Streak 10 | 1 4 3 2 1 5 5 2 4 . 6 . 10 6 6 5 . Combat Bots Only 10 | . 4 3 2 . 5 5 2 4 . 6 . 10 5 6 5 . Max Kills in Single Turn 3 | 1 2 1 1 1 3 2 1 2 . 3 . 1 2 2 1 . Gunslinging 1 | . 1 . . . 1 1 . 1 . 1 . . 1 . . . Exploded 3 | . . . . . 3 . . 2 . 3 . . . . . . Melee 1 | . . . . . . . . 1 . . . . . . . . Uniques/NPCs Destroyed . | . . . . . . . . . . . . . . . . . Combat | -11 -10 -10 -9 -8 -8 -8 -7 -7 -7 -7 -6 -6 -5 -5 -5 -5 -------- Run | Yrd Mat Min Mat Mat Gar Mat Fac Gar Fac Gar Fac DSF Fac Upp Upp War Hostile Shots Fired 1217 | . 27 20 23 . 172 60 66 131 7 202 . 86 94 204 62 63 Missed 309 | . 12 5 13 . 28 18 18 41 2 35 . 27 27 55 5 23 Hits 908 | . 15 15 10 . 144 42 48 90 5 167 . 59 67 149 57 40 Melee 14 | . . . . . 2 1 . 1 . 9 . . . 1 . . Projectile 894 | . 15 15 10 . 142 41 48 89 5 158 . 59 67 148 57 40 AOE 4 | . . . . . 1 . . 2 . . . . 1 . . . Critical Strikes 41 | . . 1 1 . 10 2 . 6 . 9 . 1 4 4 2 1 Actively Blocked 1 | . . . . . . . . . . . . . 1 . . . Part Disruptions 5 | . . . . . . . . . . . . . . 4 . 1 Damage Taken 14794 | . 127 174 126 . 2203 590 477 1419 82 2071 . 1282 1518 2605 1106 1014 Core 1758 | . 22 28 38 . 170 70 37 119 . 170 . 99 122 285 131 467 Absorbed by Shields 182 | . . . . . . . . 182 . . . . . . . . Reduced by Siege Mode 592 | . . . . . . . . . . 212 . 82 51 71 176 . Redirected to Shielding 129 | . . . . . . . . . . . . 28 101 . . . Core Remaining (%) 77 | 100 . 80 90 . . 56 . . . 53 . 88 . . . . Volleys Fired 467 | 8 26 13 20 2 96 43 11 54 1 72 . 25 49 33 14 . Largest 3 | 1 2 2 3 3 3 3 3 3 2 3 . 3 3 3 3 . Hottest 281 | 20 60 40 69 69 80 114 93 93 56 229 . 241 155 100 281 . Shots Fired 1174 | 8 52 26 60 6 267 131 33 124 3 179 . 65 114 74 31 1 Gun 1050 | 8 52 26 60 6 263 108 22 108 3 176 . 57 79 50 31 1 Cannon 106 | . . . . . . 23 11 11 . . . 8 35 18 . . Launcher 11 | . . . . . 4 . . 5 . 1 . . . 1 . . Special 7 | . . . . . . . . . . 2 . . . 5 . . Kinetic 949 | 8 50 26 60 6 263 120 33 119 3 78 . 21 71 68 23 . Thermal 204 | . . . . . . 11 . . . 98 . 44 43 . 8 . Explosive 10 | . . . . . 4 . . 5 . 1 . . . . . . Electromagnetic 4 | . 2 . . . . . . . . . . . . 1 . 1 Robot Hit Streak 74 | 3 16 7 15 2 14 15 10 19 4 74 . 45 41 19 17 . Robot Miss Streak 6 | 2 2 2 3 2 6 5 2 5 . 2 . 2 3 6 3 . Penetration Max 2 | . . . . . . 1 1 1 . . . 2 1 . . . Secondary Targets 29 | . 2 2 . . 6 1 . 5 . 9 . 1 2 . 1 . Max Gunslinging Chain 1 | . 1 1 . . 1 1 . 1 . 1 . 1 1 . 1 . Shots Hit Robots 839 | 5 39 17 38 2 130 76 27 121 3 142 . 53 92 59 35 . Core Hits 485 | 3 17 11 17 2 50 38 8 69 1 88 . 45 65 43 28 . Critical Kills 6 | . . . . . . 1 . 1 . . . 3 1 . . . Critical Parts Destroyed 10 | . 1 . . . 1 . . 1 . 1 . 3 3 . . . Critical Strikes 34 | . 2 . . . 1 2 1 7 . 2 . 6 8 5 . . Burn 2 | . . . . . . 1 . . . 1 . . . . . . Destroy 16 | . 1 . . . 1 1 . 2 . 1 . 6 4 . . . Blast 11 | . . . . . . . 1 1 . . . . 4 5 . . Corrupt 1 | . 1 . . . . . . . . . . . . . . . Sever 4 | . . . . . . . . 4 . . . . . . . . Melee Attacks 75 | . . . . . . . . 52 2 7 . . 9 . 5 . Impact . | . . . . . . . . . . . . . . . . . Slashing 75 | . . . . . . . . 52 2 7 . . 9 . 5 . Piercing . | . . . . . . . . . . . . . . . . . Sneak Attacks 1 | . . . . . . . . . . . . . 1 . . . Combat Hostiles . | . . . . . . . . . . . . . . . . . Follow-up Attacks . | . . . . . . . . . . . . . . . . . Damage Inflicted 20201 | 49 422 174 362 25 2628 1761 615 4232 39 3619 . 1405 2191 1455 1224 . Guns 13972 | 47 422 174 362 25 2230 1376 366 1392 39 3018 . 1242 1431 940 908 . Cannons 2023 | . . . . . . 360 249 215 . . . 163 690 346 . . Explosions 1171 | . . . . . 398 . . 435 . 169 . . . 169 . . Melee 3008 | . . . . . . . . 2190 . 432 . . 70 . 316 . Ramming 27 | 2 . . . . . 25 . . . . . . . . . . Kinetic 11450 | 47 399 174 362 25 2230 1576 615 1607 39 1170 . 266 1090 1286 564 . Thermal 4522 | . . . . . . 160 . . . 1848 . 1139 1031 . 344 . Explosive 1002 | . . . . . 398 . . 435 . 169 . . . . . . Electromagnetic 192 | . 23 . . . . . . . . . . . . 169 . . Impact . | . . . . . . . . . . . . . . . . . Slashing 3008 | . . . . . . . . 2190 . 432 . . 70 . 316 . Piercing . | . . . . . . . . . . . . . . . . . Highest Corruption 7 | . . . . . 3 3 . 7 7 7 . 2 1 4 4 4 Average Corruption 4 | . . . . . 2 3 . 6 7 7 . 1 1 2 4 4 Corruption Purged . | . . . . . . . . . . . . . . . . . Corruption Blocked . | . . . . . . . . . . . . . . . . . Effects 203 | . . . . . 21 20 . 57 2 52 . 10 2 10 27 2 Message Errors 41 | . . . . . 5 6 . 9 1 10 . . . 2 8 . Matter Fused 48 | . . . . . 6 5 . 16 . 12 . 2 . 1 6 . Heat Flow Errors 23 | . . . . . 4 1 . 8 . 5 . 1 . 1 2 1 Energy Discharges 21 | . . . . . 1 2 . 6 . 5 . 2 . 1 4 . Parts Rejected 4 | . . . . . . . . . . 1 . . . 1 2 . Parts Fused 4 | . . . . . . . . 1 . 3 . . . . . . Data Loss (minor) 32 | . . . . . 2 2 . 10 . 10 . 3 . 2 3 . Data Loss (major) 11 | . . . . . 2 1 . 1 . 1 . 1 2 2 1 . Misfires 10 | . . . . . 1 3 . 3 1 1 . . . . . 1 Alerts 2 | . . . . . . . . 1 . 1 . . . . . . Weapon Failures 7 | . . . . . . . . 2 . 3 . 1 . . 1 . Overload Shots 7 | . . . . . . . . . . . . . . . 7 . Effects 1 | . . . . . . . . . . . . . . . 1 . Heat Surge 1 | . . . . . . . . . . . . . . . 1 . Overflow Damage 87 | . . . . . 3 . . 3 . 32 . . 24 9 16 . Projectiles 33 | . . . . . . . . . . . . . 24 9 . . Explosions 3 | . . . . . 3 . . . . . . . . . . . Melee 51 | . . . . . . . . 3 . 32 . . . . 16 . Knockbacks 23 | . . . . . . 5 2 . . . . 2 6 8 . . Impact . | . . . . . . . . . . . . . . . . . Kinetic 20 | . . . . . . 5 1 . . . . 2 6 6 . . Secondary 3 | . . . . . . . 1 . . . . . . 2 . . Self-Inflicted Damage 127 | . . . . . 30 . . 72 . . . . . 25 . . Shots 5 | . . . . . 2 . . 2 . . . . . 1 . . Rammed 3 | 1 . . . . . 2 . . . . . . . . . . Targets Rammed 3 | 1 . . . . . 2 . . . . . . . . . . Kicked . | . . . . . . . . . . . . . . . . . Crushed . | . . . . . . . . . . . . . . . . . Highest Temperature 597 | . 18 34 96 12 382 342 136 259 . 373 . 597 243 128 504 263 Average Temperature 86 | . 6 9 31 8 112 77 64 56 . 92 . 110 88 36 191 140 Received Heat Transfer 3715 | . 30 75 51 . 648 189 210 165 45 798 . 237 264 571 432 . Effects 12 | . . . . . 2 . . . . 1 . 6 . . 3 . Shutdowns 1 | . . . . . . . . . . . . 1 . . . . Interference 3 | . . . . . . . . . . . . 3 . . . . Matter Decay 2 | . . . . . 1 . . . . 1 . . . . . . Short Circuit 1 | . . . . . 1 . . . . . . . . . . . Damage (minor) 1 | . . . . . . . . . . . . . . . 1 . Damage (major) 4 | . . . . . . . . . . . . 2 . . 2 . Siege Activations 22 | . . . . . . . . . . 13 . 3 4 1 1 . Total Turns 996 | . . . . . . . . . . 470 . 316 96 62 52 . Longest Duration 278 | . . . . . . . . . . 83 . 278 41 62 52 . Martial Activations . | . . . . . . . . . . . . . . . . . Shielding Activations . | . . . . . . . . . . . . . . . . . Robots Disrupted . | . . . . . . . . . . . . . . . . . Combat Hostiles . | . . . . . . . . . . . . . . . . . Robots Corrupted 1 | . . . . . . . . . . . . . . 1 . . Combat Hostiles 1 | . . . . . . . . . . . . . . 1 . . Parts Fried . | . . . . . . . . . . . . . . . . . Impact Corruptions 1 | . . . . . . . . . . . . . . 1 . . Robots Melted 2 | . . . . . . . . . . 2 . . . . . . Combat Hostiles 2 | . . . . . . . . . . 2 . . . . . . Parts Melted 16 | . . . . . . . . . . 8 . 4 3 . 1 . Heat Transferred 9605 | . . . . . . 370 . . . 4103 . 2420 2325 . 387 . Parts Sabotaged . | . . . . . . . . . . . . . . . . . Parts Stolen . | . . . . . . . . . . . . . . . . . Parts Stripped . | . . . . . . . . . . . . . . . . . Power Chain Reactions . | . . . . . . . . . . . . . . . . . Alert | -11 -10 -10 -9 -8 -8 -8 -7 -7 -7 -7 -6 -6 -5 -5 -5 -5 ------- Run | Yrd Mat Min Mat Mat Gar Mat Fac Gar Fac Gar Fac DSF Fac Upp Upp War Maximum Alert Level 4 | . . . . . 4 3 1 4 3 4 3 3 2 . . . Low Security (%) 19 | 100 100 100 100 100 25 . . . . . . . . . . . Level 1 10 | . . . . . 12 . 100 17 . . . . 13 . . . Level 2 37 | . . . . . 24 84 . 31 . 21 . 73 86 . . . Level 3 24 | . . . . . 34 15 . 37 100 44 100 26 . . . . Level 4 8 | . . . . . 1 . . 13 . 33 . . . . . . Level 5 . | . . . . . . . . . . . . . . . . . High Security . | . . . . . . . . . . . . . . . . . Max Security . | . . . . . . . . . . . . . . . . . Sterilizations 1 | . . . . . . . . . . . . 1 . . . . Peak Influence 1499 | 5 92 100 65 9 1104 826 375 1474 773 1499 786 838 527 . . . Initial 786 | . . 10 . 9 . 538 375 198 773 528 786 553 439 . . . Average 560 | 1 40 42 20 1 506 601 307 699 768 1011 786 656 436 . . . Influence Increases 6749 | 10 261 125 233 5 1334 814 88 1436 2 1101 5 345 570 305 115 . Destroy 0b10 Robot/C 3860 | . 180 100 140 . 680 460 60 540 . 720 . 280 320 280 100 . Destroy 0b10 Robot/NC 180 | 10 15 5 10 5 15 45 5 30 . 10 . . 25 . 5 . Destroy Leader 516 | . 34 20 62 . 30 142 22 20 . 60 . 50 56 10 10 . Allied During Kill 51 | . . . . . 24 4 . 8 . 15 . . . . . . Successful Hack 99 | . 17 . 5 . 37 . . 14 . 21 5 . . . . . Disable Machine 90 | . . . . . . 75 . . . . . . 15 . . . Anti-Garrison Action 1350 | . . . . . 450 . . 700 . 200 . . . . . . Destroy Structure 258 | . . . 1 . 98 13 1 79 2 30 . . 34 . . . Lose Combat Pursuer 345 | . 15 . 15 . . 75 . 45 . 45 . 15 120 15 . . Influence Decreases 6749 | 10 232 154 210 28 230 1092 631 245 721 357 713 298 997 716 115 . Entered New Map 3566 | . . 19 . 14 . 566 451 85 701 227 713 238 399 153 . . Time Decay 2264 | 10 232 135 210 14 . 486 160 . 20 . . . 518 404 75 . Lost Part 670 | . . . . . 150 . 20 120 . 70 . 60 70 140 40 . Lost Ally 249 | . . . . . 80 40 . 40 . 60 . . 10 19 . . Squads Dispatched 20 | . 2 . 2 . . 5 1 . 1 . . 4 5 . . . Investigation 1 | . . . 1 . . . . . . . . . . . . . Extermination 1 | . . . . . . . . . . . . . 1 . . . Reinforcement 14 | . 2 . 1 . . 3 . . 1 . . 4 3 . . . Assault 3 | . . . . . . 2 . . . . . . 1 . . . Garrison 1 | . . . . . . . 1 . . . . . . . . . Intercept . | . . . . . . . . . . . . . . . . . Searches Triggered . | . . . . . . . . . . . . . . . . . Construction Impeded . | . . . . . . . . . . . . . . . . . Haulers Reinforced 1 | . . . . . . . . . . . . . 1 . . . Active Scanning Responses . | . . . . . . . . . . . . . . . . . Cargo Convoy Interrupts 1 | . . . . . . . . . . . . . 1 . . . Stealth | -11 -10 -10 -9 -8 -8 -8 -7 -7 -7 -7 -6 -6 -5 -5 -5 -5 --------- Run | Yrd Mat Min Mat Mat Gar Mat Fac Gar Fac Gar Fac DSF Fac Upp Upp War Distress Signals 9 | . 1 . 1 . 3 3 1 . . . . . . . . . Communications Jammed . | . . . . . . . . . . . . . . . . . Distress Signals . | . . . . . . . . . . . . . . . . . Times Spotted 263 | . 20 7 12 1 39 40 5 32 3 33 . 16 27 19 5 4 Peak Tracking Total 9 | . 4 2 3 1 8 6 3 5 3 6 . 5 5 9 5 4 Tactical Retreats 20 | . 1 . 1 . . 3 . 3 . 3 . 1 7 1 . . Traps | -11 -10 -10 -9 -8 -8 -8 -7 -7 -7 -7 -6 -6 -5 -5 -5 -5 ------- Run | Yrd Mat Min Mat Mat Gar Mat Fac Gar Fac Gar Fac DSF Fac Upp Upp War Traps Triggered 12 | . . . 2 . 2 1 . 2 . 3 . . 1 . . 1 Indirectly . | . . . . . . . . . . . . . . . . . Trap Hack Attempts . | . . . . . . . . . . . . . . . . . Triggered . | . . . . . . . . . . . . . . . . . Disarmed . | . . . . . . . . . . . . . . . . . Reprogrammed . | . . . . . . . . . . . . . . . . . Reused . | . . . . . . . . . . . . . . . . . Traps Extracted . | . . . . . . . . . . . . . . . . . Installed . | . . . . . . . . . . . . . . . . . Triggered . | . . . . . . . . . . . . . . . . . Machines | -11 -10 -10 -9 -8 -8 -8 -7 -7 -7 -7 -6 -6 -5 -5 -5 -5 ---------- Run | Yrd Mat Min Mat Mat Gar Mat Fac Gar Fac Gar Fac DSF Fac Upp Upp War Machines Disabled 15 | . . . . . 2 5 . 5 . 1 . . 1 1 . . Max in Single Turn 2 | . . . . . 2 1 . 1 . 1 . . 1 1 . . Garrison Relay 5 | . . . . . . . . 4 . 1 . . . . . . Phase Generator 1 | . . . . . 1 . . . . . . . . . . . Machines Repaired . | . . . . . . . . . . . . . . . . . Machines Dismantled . | . . . . . . . . . . . . . . . . . Machines Sabotaged . | . . . . . . . . . . . . . . . . . Overloaded Fab Kills . | . . . . . . . . . . . . . . . . . Hacking | -11 -10 -10 -9 -8 -8 -8 -7 -7 -7 -7 -6 -6 -5 -5 -5 -5 --------- Run | Yrd Mat Min Mat Mat Gar Mat Fac Gar Fac Gar Fac DSF Fac Upp Upp War Machines Accessed 24 | . 3 . 3 2 3 3 1 3 1 3 1 . 1 . . . Terminals 20 | . 3 . 2 1 3 3 . 3 . 3 1 . 1 . . . Fabricators . | . . . . . . . . . . . . . . . . . Repair Stations . | . . . . . . . . . . . . . . . . . Recycling Units . | . . . . . . . . . . . . . . . . . Scanalyzers 1 | . . . 1 . . . . . . . . . . . . . Garrison Access 3 | . . . . 1 . . 1 . 1 . . . . . . . Total Hacks 47 | . 8 . 9 4 5 7 1 6 1 4 1 . 1 . . . Successful 23 | . 3 . 3 2 3 4 1 2 1 3 1 . . . . . Failed 23 | . 4 . 6 2 2 3 . 4 . 1 . . 1 . . . Catastrophic 6 | . 2 . . . 1 1 . . . 1 . . 1 . . . Database Lockouts 1 | . 1 . . . . . . . . . . . . . . . Manual 12 | . 5 . 3 . . 3 . . . . . . . 1 . . Terminals 41 | . 8 . 7 2 5 7 . 6 . 4 1 . 1 . . . Fabricators . | . . . . . . . . . . . . . . . . . Repair Stations . | . . . . . . . . . . . . . . . . . Recycling Units . | . . . . . . . . . . . . . . . . . Scanalyzers 2 | . . . 2 . . . . . . . . . . . . . Garrison Access 4 | . . . . 2 . . 1 . 1 . . . . . . . Terminal Hacks 18 | . 3 . 1 1 3 4 . 2 . 3 1 . . . . . Robot Analysis 1 | . 1 . . . . . . . . . . . . . . . Prototype ID Bank 1 | . 1 . . . . . . . . . . . . . . . Open Door 3 | . . . . . 1 . . 1 . 1 . . . . . . Open DSF 1 | . . . . . . . . . . . 1 . . . . . Emergency Access Points 3 | . . . . . 1 . . 1 . 1 . . . . . . Terminal Index 1 | . . . 1 . . . . . . . . . . . . . Alert Level 3 | . . . . 1 . 2 . . . . . . . . . . Dispatch Records 1 | . . . . . . 1 . . . . . . . . . . Hauler Manifests 2 | . 1 . . . . 1 . . . . . . . . . . Garrison Registry 1 | . . . . . . . . . . 1 . . . . . . Security Stations 1 | . . . . . 1 . . . . . . . . . . . Fabricator Hacks . | . . . . . . . . . . . . . . . . . Repair Station Hacks . | . . . . . . . . . . . . . . . . . Recycling Unit Hacks . | . . . . . . . . . . . . . . . . . Scanalyzer 2 | . . . 2 . . . . . . . . . . . . . Insert Component 1 | . . . 1 . . . . . . . . . . . . . Analyze 1 | . . . 1 . . . . . . . . . . . . . Garrison Access Hacks 3 | . . . . 1 . . 1 . 1 . . . . . . . Unlock Access 3 | . . . . 1 . . 1 . 1 . . . . . . . Unauthorized Hacks . | . . . . . . . . . . . . . . . . . Terminals . | . . . . . . . . . . . . . . . . . Fabricators . | . . . . . . . . . . . . . . . . . Repair Stations . | . . . . . . . . . . . . . . . . . Recycling Units . | . . . . . . . . . . . . . . . . . Scanalyzers . | . . . . . . . . . . . . . . . . . Garrison Access . | . . . . . . . . . . . . . . . . . Data Cores Recovered 2 | . . . . 1 . 1 . . . . . . . . . . Used . | . . . . . . . . . . . . . . . . . Hacking Detections 19 | . 2 . 3 1 2 3 . 3 1 2 1 . 1 . . . Full Trace Events 3 | . 1 . 1 . . . . . . 1 . . . . . . Feedback Events . | . . . . . . . . . . . . . . . . . Feedback Blocked . | . . . . . . . . . . . . . . . . . Robot Schematics Acquired . | . . . . . . . . . . . . . . . . . Robots Built . | . . . . . . . . . . . . . . . . . Authchips . | . . . . . . . . . . . . . . . . . Time . | . . . . . . . . . . . . . . . . . Total Robot Build Rating . | . . . . . . . . . . . . . . . . . Part Schematics Acquired 1 | . . . 1 . . . . . . . . . . . . . Parts Built . | . . . . . . . . . . . . . . . . . Authchips . | . . . . . . . . . . . . . . . . . Time . | . . . . . . . . . . . . . . . . . Total Part Build Rating . | . . . . . . . . . . . . . . . . . Parts Repaired . | . . . . . . . . . . . . . . . . . Time . | . . . . . . . . . . . . . . . . . Parts Recycled . | . . . . . . . . . . . . . . . . . Recycled Matter . | . . . . . . . . . . . . . . . . . Retrieved Matter . | . . . . . . . . . . . . . . . . . Retrieved Components . | . . . . . . . . . . . . . . . . . Parts Scanalyzed 1 | . . . 1 . . . . . . . . . . . . . Part Schematics Acquired 1 | . . . 1 . . . . . . . . . . . . . Parts Damaged . | . . . . . . . . . . . . . . . . . Bothacking | -11 -10 -10 -9 -8 -8 -8 -7 -7 -7 -7 -6 -6 -5 -5 -5 -5 ------------ Run | Yrd Mat Min Mat Mat Gar Mat Fac Gar Fac Gar Fac DSF Fac Upp Upp War Used RIF Installer 3 | . . . . . 1 . . 1 . 1 . . . . . . Watcher Feeds 1 | . . . . . . . . 1 . . . . . . . . Autooverride 1 | . . . . . . . . . . 1 . . . . . . Robots Hacked 1 | . . . . . . . . . . 1 . . . . . . Non-combat . | . . . . . . . . . . . . . . . . . Combat 1 | . . . . . . . . . . 1 . . . . . . Robot Hacks Applied 2 | . . . . . . . . . . 2 . . . . . . overwrite_iff 1 | . . . . . . . . . . 1 . . . . . . formatsys_high 1 | . . . . . . . . . . 1 . . . . . . Relay Couplers Released 21 | . . . . . 3 . . 15 . 3 . . . . . . Machine Destruction 18 | . . . . . . . . 15 . 3 . . . . . . Programmers 3 | . . . . . 3 . . . . . . . . . . . Attached 3 | . . . . . . . . 2 . 1 . . . . . . Fabnet Peak Effective % . | . . . . . . . . . . . . . . . . . Robots Rewired 7 | . . . . . 4 . . 1 . 1 . . . 1 . . Allies Hacked . | . . . . . . . . . . . . . . . . . Hacks Repelled . | . . . . . . . . . . . . . . . . . Allies | -11 -10 -10 -9 -8 -8 -8 -7 -7 -7 -7 -6 -6 -5 -5 -5 -5 -------- Run | Yrd Mat Min Mat Mat Gar Mat Fac Gar Fac Gar Fac DSF Fac Upp Upp War Total Allies 12 | . . . . . 6 . . 2 . 3 . . . 1 . . Largest Group 4 | . . . . . 4 2 . 1 . 3 . . . 1 . . Highest-Rated Group 118 | . . . . . 118 63 . 20 . 66 . . . 29 . . Highest-Rated Ally 39 | . . . . . 39 39 . 20 . 25 . . . 29 . . Total Orders 2 | . . . . . . . . . . . . . 2 . . . EXPLORE 1 | . . . . . . . . . . . . . 1 . . . RETURN 1 | . . . . . . . . . . . . . 1 . . . Ally Attacks 91 | . . . . . 32 20 . 10 . 23 . . . 6 . . Total Damage 1835 | . . . . . 722 483 . 92 . 461 . . . 77 . . Kills 17 | . . . . . 9 5 . . . 3 . . . . . . Allies Corrupted . | . . . . . . . . . . . . . . . . . Allies Melted . | . . . . . . . . . . . . . . . . . Intel | -11 -10 -10 -9 -8 -8 -8 -7 -7 -7 -7 -6 -6 -5 -5 -5 -5 ------- Run | Yrd Mat Min Mat Mat Gar Mat Fac Gar Fac Gar Fac DSF Fac Upp Upp War Active Infowar (turns) 2130 | 11 199 . . . . . . 25 40 1321 . . 534 . . . Seismic 210 | 11 199 . . . . . . . . . . . . . . . T.N.C. 1920 | . . . . . . . . 25 40 1321 . . 534 . . . Robot Analysis Total 1 | . 1 . . . . . . . . . . . . . . . Derelict Logs Recovered 4 | . . 1 . . . . . . . . . . . 1 2 . Drone Launches 2 | . . . . . . . . . . . . . 2 . . . Drone Recoveries 1 | . . . . . . . . . . . . . 1 . . . Exploration | -11 -10 -10 -9 -8 -8 -8 -7 -7 -7 -7 -6 -6 -5 -5 -5 -5 ------------- Run | Yrd Mat Min Mat Mat Gar Mat Fac Gar Fac Gar Fac DSF Fac Upp Upp War Turns Passed 13996 | 106 602 336 527 97 2293 1263 324 2419 40 1784 16 633 1427 1009 969 151 Spaces Moved 6174 | 55 285 183 263 53 1157 632 166 1029 19 567 10 134 521 498 520 82 Core 16 | 14 . . . . . . . . . . . . . . . 2 Treads 6110 | 41 285 183 263 53 1157 632 166 981 19 567 10 134 521 498 520 80 Legs . | . . . . . . . . . . . . . . . . . Wheels 48 | . . . . . . . . 48 . . . . . . . . Hover . | . . . . . . . . . . . . . . . . . Flight . | . . . . . . . . . . . . . . . . . Fastest Speed 50 | 50 160 160 160 160 160 156 156 156 160 160 160 160 160 160 160 100 Average Speed 160 | 132 160 160 160 160 160 158 156 161 160 164 160 160 160 162 163 172 Slowest Speed 320 | 160 160 160 160 160 240 160 156 240 160 240 160 166 160 240 240 320 Overloaded Moves . | . . . . . . . . . . . . . . . . . Propulsion Burnouts . | . . . . . . . . . . . . . . . . . Robots Hopped . | . . . . . . . . . . . . . . . . . Potential Cave-ins . | . . . . . . . . . . . . . . . . . Cave-ins Triggered . | . . . . . . . . . . . . . . . . . Exploration Rate (%) 42 | 4 42 43 27 8 90 59 5 94 2 69 . 88 10 57 66 17 Regions Visited 16 Branch Regions 4 Pre-discovered Areas 3 | . . 1 . . . . . . . . . . . . 2 . Known Exits Taken 6 | . . . . 1 . 1 1 . 1 . 1 . . 1 . . Unknown Exits Taken 6 | 1 1 1 1 . . . . . . . . . 1 . 1 . Scrap Searched 6 | . . . . . . . . . . . . . . 3 3 . Spaces Dug 10 | . . . . . . . . . 2 . . . 8 . . . Terrain Destroyed 154 | . . . . . 93 8 . 28 2 . . 2 19 1 1 . Melee 9 | . . . . . . . . . 2 . . . 7 . . . Projectile 28 | . . . . . 1 8 . 4 . . . 2 11 1 1 . AOE 116 | . . . . . 92 . . 24 . . . . . . . . Terrain Rammed . | . . . . . . . . . . . . . . . . . Walls Destroyed . | . . . . . . . . . . . . . . . . . Machines Disabled . | . . . . . . . . . . . . . . . . . Actions | -11 -10 -10 -9 -8 -8 -8 -7 -7 -7 -7 -6 -6 -5 -5 -5 -5 --------- Run | Yrd Mat Min Mat Mat Gar Mat Fac Gar Fac Gar Fac DSF Fac Upp Upp War Total 9250 | 79 383 203 337 61 1430 810 207 1601 23 1248 10 503 1023 632 603 97 Wait 1999 | . 57 5 19 . 94 78 14 369 1 542 . 308 408 63 40 1 Move 6162 | 55 284 182 262 53 1155 631 166 1028 19 566 10 133 520 497 519 82 Hop . | . . . . . . . . . . . . . . . . . Pick Up 162 | 10 9 3 8 3 27 8 6 28 . 12 . 13 10 14 11 . Fast Attach 39 | 1 . . 5 . 3 9 1 5 . 6 . 1 8 . . . Attach 103 | 5 1 . 2 2 13 . 6 12 . 11 . 12 9 15 10 5 Detach 10 | . . . . . . . . . . 1 . 1 2 . . 6 Swap 74 | . 4 . 9 . 13 13 . 19 . 11 . . 2 1 2 . Drop 115 | . 2 . 12 1 15 26 3 22 . 9 . 10 6 4 2 3 Fire 467 | 8 26 13 20 2 96 43 11 54 1 72 . 25 49 33 14 . Melee 75 | . . . . . . . . 52 2 7 . . 9 . 5 . Ram . | . . . . . . . . . . . . . . . . . Kick . | . . . . . . . . . . . . . . . . . Crush 2 | . . . . . . 2 . . . . . . . . . . Escape Stasis 2 | . . . . . . . . 2 . . . . . . . . Rewire 40 | . . . . . 14 . . 10 . 11 . . . 5 . . Trap . | . . . . . . . . . . . . . . . . . Miscellaneous . | . . . . . . . . . . . . . . . . . Route ------- -11/Scrapyard -10/Materials (discovered 2 exits: *Mat / [*Min]) -10/Mines (discovered 2 exits: *Mat x2) -9/Materials (discovered 2 exits: *Mat / [*Min]) -8/Materials -8/Garrison (discovered 3 exits: *Mat x3) -8/Materials (discovered 2 exits: *Fac x2) -7/Factory -7/Garrison (discovered 3 exits: *Fac x3) -7/Factory -7/Garrison (discovered 4 exits: *Fac x3 / [Fac]) -6/Factory -6/DSF -5/Factory -5/Upper Caves -5/Upper Caves -5/Warlord History --------- Turn | Location | Event 7 | -11/Scrapyard | Discovered new exit (range 14) 107 | -11/Scrapyard | Entered Materials 327 | -10/Materials | Build established: Mutant 423 | -10/Materials | Discovered new exit (range 6) 535 | -10/Materials | Discovered new exit (range 6) 599 | -10/Materials | Central database locked down 709 | -10/Materials | Entered Mines 781 | -10/Mines | Discovered new exit (range 5) 1021 | -10/Mines | Discovered new exit (range 9) 1045 | -10/Mines | Entered Materials 1045 | -9/Materials | Evolved 2 slots: Propulsion x1, Weapon x1 1352 | -9/Materials | Build established: Tank 1410 | -9/Materials | Discovered new exit (range 4) 1415 | -9/Materials | Discovered new exit (range 16) 1572 | -9/Materials | Entered another Materials area 1572 | -8/Materials | Evolved 2 slots: Propulsion x1, Utility x1 1669 | -8/Materials | Identified exit to Garrison 1669 | -8/Materials | Entered Garrison 1693 | -8/Garrison | Triggered checkpoint 1748 | -8/Garrison | Build established: Scavenger-Tank 1811 | -8/Garrison | Triggered checkpoint 1817 | -8/Garrison | Triggered checkpoint 1878 | -8/Garrison | Lost 5 parts (3n2u) 1928 | -8/Garrison | Discovered new exit (range 11) 1957 | -8/Garrison | Triggered checkpoint 1991 | -8/Garrison | Lost 3 parts (2u1w) 2529 | -8/Garrison | Triggered checkpoint 2817 | -8/Garrison | Discovered new exit (range 10) 2859 | -8/Garrison | Triggered checkpoint 2901 | -8/Garrison | Learned Materials security intel 2915 | -8/Garrison | Triggered checkpoint 2968 | -8/Garrison | Lost 5 parts (3n2u) 3077 | -8/Garrison | Triggered checkpoint 3117 | -8/Garrison | Phase Generator disabled 3229 | -8/Garrison | Build established: Scavenger-Gunner 3285 | -8/Garrison | Installed Relay Interface Framework 3516 | -8/Garrison | Discovered new exit (range 12) 3706 | -8/Garrison | Rescued a captive Derelict 3713 | -8/Garrison | Rescued a captive Derelict 3962 | -8/Garrison | Entered Materials 3962 | -8/Materials | Accompanied by 2 allies 4034 | -8/Materials | Build established: Scavenger-Tank 4438 | -8/Materials | Build established: Scavenger-Gunner 4471 | -8/Materials | Discovered new exit (range 12) 4632 | -8/Materials | Identified exit to Factory 4951 | -8/Materials | Discovered exit to Factory (range 8) 5162 | -8/Materials | First assault squad dispatched 5225 | -8/Materials | Entered Factory 5225 | -7/Factory | Evolved 2 slots: Utility x2 5466 | -7/Factory | Garrison activated, responded to threat 5549 | -7/Factory | Identified exit to Garrison 5549 | -7/Factory | Entered Garrison 5644 | -7/Garrison | Triggered checkpoint 5687 | -7/Garrison | Expanded RIF knowledge: Watcher Feeds 5929 | -7/Garrison | Triggered checkpoint 6021 | -7/Garrison | Discovered new exit (range 12) 6043 | -7/Garrison | Triggered checkpoint 6177 | -7/Garrison | Lost 6 parts (1p2n1u2w) 6507 | -7/Garrison | Rescued a captive Derelict 6607 | -7/Garrison | Triggered checkpoint 6854 | -7/Garrison | Discovered new exit (range 14) 7045 | -7/Garrison | Triggered checkpoint 7290 | -7/Garrison | Discovered new exit (range 10) 7329 | -7/Garrison | Triggered checkpoint 7350 | -7/Garrison | Garrison Relay disabled 7553 | -7/Garrison | Garrison Relay disabled 7693 | -7/Garrison | Build established: Scavenger-Mutant 7695 | -7/Garrison | Garrison Relay disabled 7875 | -7/Garrison | Garrison Relay disabled 7968 | -7/Garrison | Entered Factory 8008 | -7/Factory | Identified exit to Garrison 8008 | -7/Factory | Entered Garrison 8095 | -7/Garrison | Discovered new exit (range 70) 8095 | -7/Garrison | Discovered new exit (range 63) 8095 | -7/Garrison | Discovered new exit (range 88) 8095 | -7/Garrison | Discovered new exit (range 31) 8432 | -7/Garrison | Rescued a captive Derelict 8472 | -7/Garrison | Garrison Relay disabled 8531 | -7/Garrison | Triggered checkpoint 8642 | -7/Garrison | Triggered checkpoint 8656 | -7/Garrison | Triggered checkpoint 8698 | -7/Garrison | Build established: Scavenger-Gunner 8721 | -7/Garrison | Lost 3 allies 8817 | -7/Garrison | Triggered checkpoint 9263 | -7/Garrison | Triggered checkpoint 9301 | -7/Garrison | Expanded RIF knowledge: Autooverride 9400 | -7/Garrison | Triggered checkpoint 9633 | -7/Garrison | Build established: Scavenger-Tank 9792 | -7/Garrison | Entered Factory 9792 | -6/Factory | Evolved 2 slots: Utility x2 9808 | -6/Factory | Identified exit to DSF 9808 | -6/Factory | Entered DSF 9854 | -6/DSF | Additional patrols routed to DSF 10154 | -6/DSF | Build established: Scavenger-Gunner 10217 | -6/DSF | Lost 3 parts (2n1u) 10278 | -6/DSF | Sterilization system engaged 10285 | -6/DSF | Lost 3 parts (1u2w) 10298 | -6/DSF | Ambient heat levels rising (+10) 10313 | -6/DSF | Ambient heat levels rising (+10) 10328 | -6/DSF | Ambient heat levels rising (+10) 10329 | -6/DSF | Destroyed 10 combat bots 10343 | -6/DSF | Ambient heat levels rising (+10) 10358 | -6/DSF | Ambient heat levels rising (+10) 10373 | -6/DSF | Ambient heat levels rising (+10) 10388 | -6/DSF | Ambient heat levels rising (+10) 10403 | -6/DSF | Ambient heat levels rising (+10) 10418 | -6/DSF | Ambient heat levels rising (+10) 10421 | -6/DSF | Discovered new exit (range 14) 10433 | -6/DSF | Ambient heat levels rising (+10) 10441 | -6/DSF | Entered Factory 10441 | -5/Factory | Evolved 2 slots: Propulsion x1, Utility x1 10606 | -5/Factory | Discovered new exit (range 15) 11041 | -5/Factory | First assault squad dispatched 11267 | -5/Factory | Build established: Gunner 11489 | -5/Factory | Cargo convoy interrupted 11779 | -5/Factory | Lost 5 parts (1p3u1w) 11868 | -5/Factory | Entered Upper Caves 11982 | -5/Upper Caves | Lost 4 parts (2n1u1w) 12043 | -5/Upper Caves | Identified exit to Upper Caves 12193 | -5/Upper Caves | Acquired the password to a Derelict Tinkerer's latest research 12206 | -5/Upper Caves | Found Prototype Special Weapon 12208 | -5/Upper Caves | Identified Molecular Deconstructor 12442 | -5/Upper Caves | Attracted the attention of an 0b10 outpost 12461 | -5/Upper Caves | Caught by Unaware searching for contraband prototypes 12531 | -5/Upper Caves | Caught by Unaware searching for contraband prototypes 12542 | -5/Upper Caves | Lost 10 parts (3p1n3u3w) 12871 | -5/Upper Caves | Build established: Scavenger-Tank 12877 | -5/Upper Caves | Entered another Upper Caves area 12968 | -5/Upper Caves | Encountered a Warlord checkpoint 13422 | -5/Upper Caves | Learned location of Armory (-4) 13480 | -5/Upper Caves | Core integrity fell below 50% 13524 | -5/Upper Caves | Lost 5 parts (1n1u3w) 13840 | -5/Upper Caves | Discovered new exit (range 4) 13846 | -5/Upper Caves | Entered Warlord 13939 | -5/Warlord | System corruption cleaned by Quarantine Array 13945 | -5/Warlord | RIF detected upon attempting to enter Warlord's base 13945 | -5/Warlord | Attacked by Warlord forces 13964 | -5/Warlord | Spotted 5I-FSD(B) 13964 | -5/Warlord | Spotted 3S-I4S(B) 13992 | -5/Warlord | Core integrity fell below 20% 13997 | -5/Warlord | Destroyed by 5I-FSD(B) with Slug Cannon Last Messages --------------- 13964_ Adv. Targeting Computer destroyed. 13964_ Exp. Heat Sink destroyed. 13965_ Imp. Heavy Treads destroyed. 13966_ Penetrated by Slug. 13968_ System Quarantine Field Array disabled. 13971_ Acquired 5 matter. 13973_ System Quarantine Field Array disabled. 13979_ Mic. Fission Core destroyed. 13984_ Authchip [R/Combat] destroyed. 13986_ Adv. Heat Sink destroyed. 13986_ Com. Battery destroyed. 13986_ Critical hit (Blast). 13988_ Imp. Medium Treads destroyed. 13988_ Power Amplifier destroyed. 13991_ Slug penetrates System Quarantine Field Array. 13994_ Dropped Huge Storage Unit. 13995_ Knocked back. 13995_ Dropped Hrd. Heavy Armor Plating. 13995_ Dropped Adv. Drone Bay. 13996_ Acquired 17 matter. Map ----- +----------------------------------------------------+ | ?????????????????????????????????????????????????? | | ?????????????????????????????????????????????????? | | ?????????????????????????????????????????????????? | | ?????????????????????????????????????????????????? | | ?????????????????????????????????????????????????? | | ?????????????????????????????????????????????????? | | ?????????????????????????????????????????????????? | | ?????????????????????????????????????????????????? | | ?????????????????????????????????????????????????? | | ?????????????????????????????????????????#???????? | | ????????????????????????????????????????## ??????? | | ???????????????????????????????????????? ??????? | | ????????????????????????????????????????# ??????? | | ???????????????????????????????????????? ??????? | | ???????#????????????????????????????????? #?????? | | ???????# ?????????""????????????????????? ?????? | | ???????# ???????#""#????????????????????? ##???? | | ???????# ??????#""#????????????????????? #???? | | ????#### #??####""#####?????????????????? ##??? | | ????# ?# "" "############??????? ##? | | ????# # "" """""""""""#???????# # | | ??+## #% "" """"""""""""######?## # | | ;^ ;## ### # | | ; ^%^ ^ + ## | | ;^ Y []*! % + ##?? | | ;^ Y [[[![@ #### ##???? | | ? # # %""[[! |!"""""""""#??## #???? | | ????# " ""%/]""""""""""""#???# #???? | | ????# # "" |"############???# ##???? | | ????#### ##?####""#####?????????????## #????? | | ??????# ??????#""#????????????????## #???? | | ??????## ???????#""#????????????????# ##???? | | ???????+ ????????#""????????????????## ##????? | | ???????#??????????""????????????????# #?????? # | | ????????????????????????????????????# #?????? # | | ????????????????????????????????????# ##?????? # | | ????????????????????????????????????# #??????? # | | ???????????????????????????????????## ##????## | | ??????????????????????????????????## ##??## | | ??????????????????????????????????# ##?# | | ??????????????????????????????#####^ ## ### | | ?????????????????????????????## # #### ## | | ?????????????????????????????# #?## ## | | ?????????????????????????????# #??# ## # | | ?????????????????????????????# ## #?## # | | ?????????????????????????????###### #??### ## | | ?????????????????????????????????? ##????######? | | ??????????????????????????????????####???????????? | | ?????????????????????????????????????????????????? | | ?????????????????????????????????????????????????? | +----------------------------------------------------+ Best States ------------- Heat Dissipation 85 Coolant Potential 65 Energy Generation 20 Energy Capacity 350 Matter Stores 300 Matter Capacity 300 Sight Range 16 Terrain Scan Density 10 Power Amplification 20 Additional Mass Support 12 Armor Coverage 600 Utility Shielding 66 Weapon Cycling 15 Evasion (%) 50 Targeting Accuracy 24 Recoil Reduction 11 Matter Filtering 50 Kinecelleration 40 Relay Coupler Types 1 Relay Coupler Value 33 Authchip Count 2 Item Schematics ----------------- Wheel | -9/Materials | Scanalyzed Robot Schematics ------------------ None Fabricated ------------ Nothing Repaired ---------- Nothing Alien Tech Used ----------------- None Achievements -------------- None Challenges ------------ None Game ------ Seed StructuralUltimateDevice Manual? 0 Play Time 01:39:37 Cumulative 110.3 hours Start 2025.09.02 @ 14:54:43 End 2025.09.04 @ 17:44:36 Sessions 3 Manual Loads 0 Difficulty Rogue Special Mode None Game No. 128 Rogue 128 Adventurer 0 Explorer 0 Win Type - Total 2 Types 2/0/0/0/0/0/0/0/0/0 Lore% 65 Gallery% 59 Achievement% 54 Wizard Run 0 Options --------- Layout 0 ASCII 0 Keyboard 0 Movement Mouse Keybinds 0 Fullscreen 1 Font 24/Smallcaps Map View 76x50 Zoom Use 0% Tactical HUD 1 Map Filters NONE Filters NONE Steam 1 RUN: 80836c80-c488-44f5-9fab-8db740fcc695